bitfinex-derivatives/quotes_ETHF0:USTF0_20241229
["timestamp","ask_amount","ask_price","bid_price","bid_amount"]
[1735465812532,3.46995261,3404.3,3404.2,0.29423]
[1735465812833,3.46995261,3404.3,3404.2,2.14686905]
[1735465813335,4.18766261,3404.5,3404.3,0.29422]
[1735465813525,0.29422,3404.4,3404.3,0.29422]
[1735465816436,4.18766261,3404.5,3404.4,0.29422]
[1735465817233,7.39546261,3404.5,3404.4,0.29422]
[1735465821840,4.18766261,3404.5,3404.4,0.29422]
[1735465824735,3.46995261,3404.5,3404.4,1.33315011]
[1735465824930,3.46995261,3404.5,3404.4,1.70103819]
[1735465825536,3.46995261,3404.5,3404.4,1.33315011]
[1735465825742,3.46995261,3404.5,3404.4,1.70102637]
[1735465826254,3.46995261,3404.5,3404.4,1.70102114]
[1735465826547,3.2078,3404.6,3404.5,0.29421]
[1735465826738,3.2078,3404.6,3404.5,0.66208103]
[1735465827041,3.2078,3404.6,3404.5,1.08918103]
[1735465827842,3.2078,3404.6,3404.5,1.08917755]
[1735465828347,3.2078,3404.6,3404.5,5.70971398]
[1735465828643,3.2078,3404.6,3404.5,5.70971703]
[1735465832845,3.46995261,3405.0,3404.5,5.41550703]
[1735465833046,3.46995261,3405.0,3404.9,0.29417]
[1735465833247,6.67775261,3405.0,3404.9,0.29417]
[1735465833547,3.46995261,3405.0,3404.9,0.29417]
[1735465833751,6.67775261,3405.0,3404.9,0.29417]
[1735465836642,3.2078,3405.0,3404.9,0.29417]
[1735465836842,3.76411261,3405.1,3405.0,0.29417]
[1735465837946,3.46995261,3405.1,3405.0,0.29417]
[1735465841953,3.76411261,3405.1,3405.0,0.29417]
[1735465845057,0.29417,3405.0,3404.9,1.17587]
[1735465845252,0.29417,3405.0,3404.9,0.29417]
[1735465846756,0.73827,3405.0,3404.9,0.29417]
[1735465847263,1.77720011,3405.0,3404.9,0.29417]
[1735465847460,1.48303011,3405.0,3404.3,6.94115605]
[1735465847656,0.2942,3404.6,3404.5,4.62053643]
[1735465848059,1.2004,3404.6,3404.5,4.62053643]
[1735465848461,0.29422,3404.4,3404.3,4.62053643]
[1735465848768,1.33315011,3404.4,3404.3,4.62053643]
[1735465850157,0.29425,3404.0,3403.9,3.50206]
[1735465850557,0.29425,3404.0,3403.9,0.29426]
[1735465850757,1.20425,3404.0,3403.9,0.29426]
[1735465851764,0.91,3404.0,3403.9,0.29426]
[1735465856567,3.50204,3404.2,3403.8,1.03893011]
[1735465856766,3.50204,3404.2,3404.0,1.33317011]
[1735465857267,3.50204,3404.2,3404.1,0.29424]
[1735465857469,3.46738076,3404.3,3404.0,1.03893011]
[1735465857667,3.46738076,3404.3,3404.2,1.33316011]
[1735465857872,3.91758076,3404.4,3404.3,0.29423]
[1735465859170,0.4502,3404.4,3404.3,0.29423]
[1735465861372,0.74442,3404.4,3404.3,0.29423]
[1735465861573,3.95222,3404.4,3404.3,0.29423]
[1735465862072,3.658,3404.4,3404.3,0.29423]
[1735465865379,0.4502,3404.4,3404.3,0.29423]
[1735465867278,3.2078,3404.5,3404.4,0.29422]
[1735465868681,3.50201,3404.5,3404.4,0.29422]
[1735465869579,0.29421,3404.5,3404.4,0.29422]
[1735465870783,3.96341,3404.6,3404.3,0.29423]
[1735465870976,3.6692,3404.6,3404.4,0.29421]
[1735465871178,0.29421,3404.5,3404.4,0.29421]
[1735465871579,3.6692,3404.6,3404.2,1.03893011]
[1735465871779,3.96341,3404.6,3404.5,0.29421]
[1735465872086,3.6692,3404.6,3404.5,0.29421]
[1735465872788,3.6692,3404.6,3404.5,0.71761]
[1735465872989,3.2078,3404.6,3404.5,0.71761]
[1735465876188,4.21227076,3404.7,3404.5,0.4234]
[1735465876383,4.21227076,3404.7,3404.6,0.7419]
[1735465877887,4.21227076,3404.7,3404.6,0.4477]
[1735465879291,4.21227076,3404.7,3404.6,0.7419]
[1735465880698,3.91808076,3404.7,3404.6,0.7419]
[1735465881089,4.21227076,3404.7,3404.6,0.7419]
[1735465881789,3.91808076,3404.7,3404.6,0.7419]
[1735465882093,3.46738076,3404.8,3404.7,0.29419]
[1735465883595,3.46738076,3404.9,3404.6,1.90813011]
[1735465883790,3.46738076,3404.9,3404.8,1.33311011]
[1735465884693,7.41205076,3405.0,3404.8,1.03893011]
[1735465884996,7.41205076,3405.0,3404.9,0.29417]
[1735465885295,7.41205076,3405.0,3404.9,0.71477]
[1735465885794,7.11788076,3405.0,3404.9,0.71477]
[1735465886198,4.20425076,3405.0,3404.9,0.71477]
[1735465886390,4.20425076,3405.0,3404.9,0.4206]
[1735465886695,0.29418,3404.9,3404.7,0.29419]
[1735465887285,0.29418,3404.9,3404.6,2.36263011]
[1735465887486,0.2942,3404.6,3404.4,4.91474643]
[1735465887689,0.2942,3404.6,3404.5,0.36788457]
[1735465888095,4.1223,3404.8,3404.4,4.62053643]
[1735465888299,0.29421,3404.5,3404.4,4.62053643]
[1735465888497,0.29421,3404.5,3404.3,1.19432]
[1735465889496,0.29421,3404.5,3404.3,2.23325011]
[1735465889697,3.76158076,3404.6,3404.5,0.29421]
[1735465890196,3.76158076,3404.6,3404.4,0.29421]
[1735465890396,3.76158076,3404.6,3404.5,0.29421]
[1735465891194,0.2942,3404.6,3404.5,0.29421]
[1735465891897,0.2942,3404.6,3404.4,0.29421]
[1735465892393,3.46738076,3404.7,3404.4,0.29421]
[1735465892600,3.46738076,3404.6,3404.5,0.2942]
[1735465895600,3.76158076,3404.6,3404.5,0.2942]
[1735465900704,3.46738076,3404.6,3404.5,0.2942]
[1735465901001,3.46738076,3404.6,3404.5,0.66208815]
[1735465901706,3.46738076,3404.6,3404.5,0.66208951]
[1735465903201,5.37294178,3404.7,3404.5,0.66208951]
[1735465903401,5.37294178,3404.7,3404.5,0.2942]
[1735465903797,5.07874178,3404.7,3404.5,0.2942]
[1735465904103,0.2942,3404.6,3404.5,0.29421]
[1735465905104,3.502,3404.6,3404.5,0.29421]
[1735465905306,0.29421,3404.5,3404.4,0.29421]
[1735465905603,8.12965178,3404.6,3404.5,0.29421]
[1735465907102,7.83544178,3404.6,3404.3,5.52063643]
[1735465907606,0.29421,3404.5,3404.4,0.29421]
[1735465908609,7.83544178,3404.6,3404.3,5.52063643]
[1735465908906,8.12965178,3404.6,3404.5,0.29421]
[1735465909101,0.29421,3404.5,3404.4,0.29421]
[1735465909506,7.83544178,3404.6,3404.3,5.52063643]
[1735465909707,8.12965178,3404.6,3404.4,0.29422]
[1735465909907,8.12965178,3404.6,3404.3,5.52063643]
[1735465910105,8.12965178,3404.6,3404.4,0.29422]
[1735465911710,0.29421,3404.5,3404.3,5.81485643]
[1735465912008,0.29422,3404.4,3404.3,5.36036643]
[1735465912908,0.29422,3404.4,3404.3,0.73983]
[1735465913103,0.29422,3404.4,3404.3,0.29423]
[1735465915312,6.80849318,3404.5,3404.1,1.45803011]
[1735465915513,6.06377307,3404.5,3404.4,0.29422]
[1735465915810,5.76956307,3404.5,3404.4,0.29422]
[1735465916005,9.27156307,3404.6,3404.5,0.29421]
[1735465916618,9.27156307,3404.6,3404.5,0.74181]
[1735465917426,8.13174255,3404.6,3404.5,0.74181]
[1735465918722,3.502,3404.6,3404.5,0.74181]
[1735465919319,3.2078,3404.6,3404.5,0.74181]
[1735465923928,6.67991838,3404.6,3404.5,0.74181]
[1735465925632,3.47211838,3404.6,3404.5,0.74181]
[1735465926829,3.76631838,3404.6,3404.5,0.74181]
[1735465928429,0.2942,3404.6,3404.5,0.74181]
[1735465929931,0.2942,3404.6,3404.5,0.4476]
[1735465930232,5.37504255,3404.7,3404.6,0.2942]
[1735465932828,0.29422,3404.4,3404.3,4.62053643]
[1735465933134,3.50202,3404.4,3404.3,4.62053643]
[1735465933936,3.50202,3404.4,3404.3,4.91476643]
[1735465934239,3.50202,3404.4,3404.3,0.29423]
[1735465934531,3.2078,3404.4,3404.1,0.4489]
[1735465934737,1.21193,3404.3,3404.2,0.29423]
[1735465935232,0.9177,3404.3,3404.1,0.4489]
[1735465935441,0.29423,3404.2,3404.1,0.74314]
[1735465935933,5.84330776,3404.3,3404.2,0.29423]
[1735465936134,5.84330776,3404.3,3404.2,1.33316011]
[1735465936634,4.63137776,3404.3,3404.2,1.33316011]
[1735465936937,3.2078,3404.4,3404.3,0.29423]
[1735465936938,7.83917776,3404.4,3404.3,0.29423]
[1735465937135,7.83917776,3404.4,3404.3,0.66213418]
[1735465937636,7.83917776,3404.4,3404.3,0.66212988]
[1735465937938,6.68066487,3404.4,3404.3,5.28266631]
[1735465942540,3.47286487,3404.4,3404.3,5.28266631]
[1735465942943,3.47286487,3404.5,3404.4,0.29422]
[1735465943240,3.47286487,3404.5,3404.4,1.33315011]
[1735465944240,3.47286487,3404.5,3404.4,1.70104241]
[1735465945043,3.47286487,3404.5,3404.4,1.70104388]
[1735465946934,3.47286487,3404.5,3404.4,1.70104693]
[1735465947736,4.92558776,3404.6,3404.5,0.29421]
[1735465948138,4.92558776,3404.6,3404.5,0.73741]
[1735465948646,4.63137776,3404.6,3404.5,0.73741]
[1735465948830,4.63137776,3404.6,3404.5,1.10530407]
[1735465950037,4.63137776,3404.6,3404.5,1.1052665]
[1735465950244,3.92624086,3404.8,3404.7,0.29419]
[1735465950447,3.92624086,3404.8,3404.7,1.33312011]
[1735465950641,3.92624086,3404.8,3404.7,1.70097676]
[1735465952044,3.92624086,3404.8,3404.7,2.12487676]
[1735465952545,3.92624086,3404.8,3404.7,1.75702011]
[1735465954549,3.92624086,3404.8,3404.7,2.18562011]
[1735465956746,0.4539,3404.8,3404.7,2.18562011]
[1735465963647,3.47234086,3404.9,3404.7,1.89143011]
[1735465963848,3.47234086,3404.9,3404.8,0.29418]
[1735465970755,4.38814086,3405.0,3404.7,1.89143011]
[1735465970956,4.38814086,3405.0,3404.9,0.29417]
[1735465972461,4.38814086,3405.0,3404.9,1.33310011]
[1735465973454,3.47234086,3405.0,3404.9,1.33310011]
[1735465973660,3.47234086,3405.0,3404.9,1.70092141]
[1735465973962,3.47234086,3405.0,3404.9,1.70091557]
[1735465974455,6.68014086,3405.2,3405.1,0.29416]
[1735465974758,6.68014086,3405.2,3405.1,1.33309011]
[1735465975353,3.47234086,3405.2,3405.1,1.33309011]
[1735465975558,5.37430776,3405.4,3405.1,1.03893011]
[1735465975559,3.47234086,3405.3,3405.1,1.03893011]
[1735465975753,3.47234086,3405.3,3405.2,0.29415]
[1735465976452,3.76648086,3405.3,3405.2,0.29415]
[1735465976659,0.29415,3405.2,3405.1,1.33308011]
[1735465977857,3.47234086,3405.3,3404.9,1.03893011]
[1735465978055,0.29417,3405.0,3404.9,1.33310011]
[1735465978455,1.20647,3405.0,3404.9,1.7009432]
[1735465980757,1.20647,3405.0,3404.9,1.40677058]
[1735465981354,1.20647,3405.0,3404.9,0.36784264]
[1735465981759,1.20647,3405.0,3404.9,0.66201264]
[1735465982162,1.20647,3405.0,3404.9,0.36784264]
[1735465982666,1.20647,3405.0,3404.8,0.29418]
[1735465982865,1.20647,3405.0,3404.9,0.36784381]
[1735465983165,1.20647,3405.0,3404.9,0.7356839]
[1735465983468,1.20647,3405.0,3404.9,0.36784195]
[1735465985362,1.20647,3405.0,3404.7,4.60241081]
[1735465985363,0.9123,3405.0,3404.7,4.60241081]
[1735465985663,0.29418,3404.8,3404.7,4.60241081]
[1735465986965,0.2942,3404.6,3404.5,4.89662081]
[1735465987160,0.2942,3404.6,3404.5,5.26449218]
[1735465987667,0.2942,3404.7,3404.5,5.26449218]
[1735465987865,0.4522,3404.6,3404.5,4.89662081]
[1735465988064,0.4522,3404.6,3404.5,5.26449214]
[1735465988065,0.8897,3404.6,3404.5,5.26449214]
[1735465988267,0.8897,3404.6,3404.5,4.89662081]
[1735465988463,0.8897,3404.6,3404.5,5.2644915]
[1735465988666,1.1839,3404.6,3404.5,5.2644915]
[1735465989065,1.1839,3404.6,3404.5,4.9702815]
[1735465989271,1.1839,3404.6,3404.5,5.2644915]
[1735465989467,1.1839,3404.6,3404.5,4.60241081]
[1735465991369,0.29421,3404.5,3404.3,0.29422]
[1735465991770,0.29421,3404.5,3404.4,0.29422]
[1735465992472,3.76557431,3404.5,3404.4,0.29422]
[1735465994068,3.47136431,3404.5,3404.3,0.29422]
[1735465994270,3.76557431,3404.5,3404.3,0.29422]
[1735465994664,3.76557431,3404.5,3404.2,5.06521081]
[1735465994967,3.76557431,3404.5,3404.4,0.29422]
[1735465996475,3.47136431,3404.5,3404.4,0.29422]
[1735465997672,4.65527431,3404.6,3404.4,0.29422]
[1735465999470,4.36106431,3404.6,3404.4,0.29422]
[1735465999775,4.65527431,3404.6,3404.4,0.29422]
[1735466000177,4.36106431,3404.6,3404.5,0.29421]
[1735466000378,3.90886431,3404.6,3404.5,0.29421]
[1735466000874,4.20306431,3404.6,3404.5,0.29421]
[1735466001279,0.7317,3404.6,3404.5,0.29421]
[1735466002690,4.20306431,3404.6,3404.5,0.29421]
[1735466006789,3.90886431,3404.6,3404.3,0.4511]
[1735466007000,0.29422,3404.4,3404.3,0.4511]
[1735466009300,0.73642,3404.4,3404.3,0.4511]
[1735466009498,0.29425,3404.0,3403.9,3.50206]
[1735466009697,0.29425,3404.0,3403.9,3.86999768]
[1735466010792,0.29425,3404.0,3403.9,3.50206]
[1735466010995,0.29425,3404.0,3403.9,3.86999883]
[1735466011204,0.29425,3404.0,3403.9,3.2078]
[1735466012009,0.29425,3404.0,3403.9,3.50206]
[1735466013605,0.29425,3404.0,3403.9,3.87000211]
[1735466014104,0.29425,3404.0,3403.9,3.87000186]
[1735466014803,0.29425,3404.0,3403.9,0.66220186]
[1735466015404,0.29425,3404.0,3403.9,0.36794186]
[1735466017002,0.29425,3404.0,3403.9,0.36794225]
[1735466018808,0.29425,3404.0,3403.9,0.66220225]
[1735466020310,0.29425,3404.1,3403.9,0.66220459]
[1735466020505,0.29425,3404.1,3403.9,0.29426]
[1735466021410,0.29425,3404.0,3403.9,0.29426]
[1735466021610,0.29425,3404.0,3403.9,0.66220363]
[1735466023315,0.29425,3404.0,3403.9,0.66220441]
[1735466024010,0.29424,3404.1,3404.0,0.29424]
[1735466025205,0.4376,3404.2,3404.1,0.29424]
[1735466026707,3.46833316,3404.3,3404.2,0.29423]
[1735466027806,4.33073316,3404.4,3404.3,0.29423]
[1735466029422,0.8624,3404.4,3404.3,0.29423]
[1735466031120,4.33073316,3404.4,3404.3,0.29423]
[1735466033620,4.18275316,3404.4,3404.3,0.29423]
[1735466034420,3.76255316,3404.4,3404.3,0.29423]
[1735466036617,3.46833316,3404.4,3404.3,0.29423]
[1735466036813,3.46833316,3404.4,3404.3,0.66214289]
[1735466038616,3.46833316,3404.4,3404.3,0.29423]
[1735466038822,3.46833316,3404.4,3404.3,0.66212856]
[1735466039420,3.46833316,3404.4,3404.3,0.66213049]
[1735466040613,3.76255316,3404.4,3404.3,0.29423]
[1735466041315,3.46833316,3404.4,3404.3,0.29423]
[1735466042814,3.46833316,3404.4,3404.3,0.66214131]
[1735466043123,3.46833316,3404.4,3404.3,0.29423]
[1735466043517,3.46833316,3404.4,3404.3,0.66214212]
[1735466043717,3.46833316,3404.4,3404.2,0.4455]
[1735466044018,0.29423,3404.2,3404.1,4.60241081]
[1735466044215,0.29423,3404.2,3404.1,4.97033601]
[1735466044622,0.4232,3404.3,3404.2,0.29423]
[1735466044820,0.4232,3404.3,3404.2,0.6621552]
[1735466045222,0.71743,3404.3,3404.2,0.6621552]
[1735466045620,4.18576316,3404.3,3404.2,0.6621552]
[1735466045923,8.89153316,3404.3,3404.0,6.94115605]
[1735466046113,3.50204,3404.1,3404.0,4.48241706]
[1735466047225,3.50204,3404.1,3403.3,0.4249]
[1735466047226,0.29429,3403.6,3403.5,0.29429]
[1735466048120,7.83577997,3403.7,3403.6,0.29429]
[1735466048323,8.13005997,3403.7,3403.6,0.29429]
[1735466048523,7.83577997,3403.7,3403.6,0.29429]
[1735466048823,8.13005997,3403.7,3403.6,0.29429]
[1735466049017,0.29428,3403.7,3403.6,0.29429]
[1735466049217,3.50208,3403.7,3403.6,0.29429]
[1735466051415,3.2078,3403.7,3403.6,0.29429]
[1735466051616,4.62797997,3403.8,3403.7,0.29428]
[1735466052723,2.60692444,3404.0,3403.8,0.29426]
[1735466052923,2.60692444,3404.0,3403.9,1.60566]
[1735466053313,2.60692444,3404.0,3403.9,1.3114]
[1735466053519,2.60692444,3404.0,3403.9,1.60566]
[1735466053718,2.60692444,3404.0,3403.9,1.3114]
[1735466054919,2.31267444,3404.0,3403.9,1.3114]
[1735466055217,2.31267444,3404.0,3403.9,1.60566]
[1735466055922,1.61417444,3404.0,3403.9,1.60566]
[1735466056322,3.46901167,3404.2,3404.1,0.29424]
[1735466056724,3.46901167,3404.4,3404.3,0.29423]
[1735466057027,1.56738611,3404.4,3404.3,0.29423]
[1735466057219,1.56738611,3404.4,3404.3,5.29423]
[1735466057422,1.56738611,3404.4,3404.3,0.29423]
[1735466057828,1.56738611,3404.4,3404.3,0.66207376]
[1735466058321,3.71959489,3405.0,3404.8,0.29418]
[1735466058526,3.42542489,3405.0,3404.3,5.5271865]
[1735466058728,0.29418,3404.9,3404.4,0.36785053]
[1735466058922,0.29418,3404.9,3404.7,0.29419]
[1735466059236,3.42542489,3405.0,3404.3,5.5271865]
[1735466059523,0.4342,3405.0,3404.4,0.367845]
[1735466059829,0.29419,3404.8,3404.6,0.2942]
[1735466060529,0.29419,3404.7,3404.5,0.2942]
[1735466063632,0.29419,3404.8,3404.5,0.2942]
[1735466064134,0.4342,3405.0,3404.3,0.74142]
[1735466064532,0.4342,3405.0,3404.3,0.4472]
[1735466064533,0.2942,3404.6,3404.3,0.4472]
[1735466064733,0.8896,3404.5,3404.4,0.29422]
[1735466065034,0.8896,3404.5,3404.3,0.4472]
[1735466065236,0.8896,3404.5,3404.2,3.2078]
[1735466065532,0.29423,3404.3,3404.2,3.2078]
[1735466065725,0.29423,3404.2,3404.0,0.29425]
[1735466067431,3.50203,3404.3,3404.1,0.29424]
[1735466067826,3.2078,3404.3,3404.2,0.29423]
[1735466068333,0.29422,3404.4,3404.2,0.29423]
[1735466069526,0.8896,3404.5,3403.8,3.6293]
[1735466069732,1.18381,3404.5,3404.3,0.29422]
[1735466070931,1.18381,3404.5,3403.8,3.6293]
[1735466071131,1.18381,3404.5,3404.4,0.29422]
[1735466076935,1.18381,3404.5,3403.9,1.18146]
[1735466076936,0.8896,3404.5,3403.9,0.4458]
[1735466077136,1.18379,3404.5,3404.4,0.29419]
[1735466079336,0.8896,3404.5,3404.4,0.29419]
[1735466079837,3.2078,3404.7,3403.9,1.18139]
[1735466080135,3.2078,3404.7,3404.6,0.29417]
[1735466081137,0.29416,3404.8,3404.7,0.29416]
[1735466082437,0.29415,3404.8,3404.4,0.453]
[1735466082638,0.29415,3404.8,3404.5,0.36785589]
[1735466082839,0.29415,3404.8,3404.4,0.453]
[1735466083138,0.29415,3404.8,3404.5,0.36785398]
[1735466083438,0.29415,3404.8,3404.7,0.29416]
[1735466084838,0.71885,3404.9,3404.7,0.29416]
[1735466085436,0.71885,3404.9,3404.8,0.29415]
[1735466087738,0.4247,3404.9,3404.8,0.29415]
[1735466089247,3.2078,3405.1,3405.0,0.29414]
[1735466089444,3.6516,3405.1,3405.0,0.29414]
[1735466091745,0.4438,3405.1,3405.0,0.29414]
[1735466093439,0.4525,3405.3,3404.9,0.4414]
[1735466093644,3.6576,3405.6,3405.5,0.29409]
[1735466093940,8.28557997,3405.6,3405.5,0.29409]
[1735466094349,8.57965997,3405.6,3405.5,0.29409]
[1735466095148,3.95168,3405.6,3405.5,0.29409]
[1735466098550,0.74388,3405.6,3405.5,0.29409]
[1735466098744,0.4498,3405.6,3405.0,0.73535]
[1735466098952,0.2941,3405.5,3405.4,0.2941]
[1735466110248,0.29413,3405.4,3405.3,0.29412]
[1735466110460,0.4498,3405.6,3405.0,3.2078]
[1735466110665,0.29412,3405.4,3405.3,0.29412]
[1735466113555,0.29412,3405.5,3405.4,0.29412]
[1735466116256,0.7439,3405.6,3405.5,0.29411]
[1735466116456,0.4498,3405.6,3405.5,0.29411]
[1735466117255,3.50189,3405.8,3405.7,0.29409]
[1735466118957,3.2078,3405.8,3405.7,0.29409]
[1735466124063,3.2078,3405.8,3405.7,0.6618455]
[1735466125964,3.2078,3405.8,3405.7,0.29409]
[1735466126270,3.2078,3405.8,3405.7,0.66182135]
[1735466128571,3.4637949,3406.3,3405.7,3.57553135]
[1735466128773,3.4637949,3406.3,3406.2,0.29405]
[1735466129870,3.50183,3406.5,3406.3,0.29404]
[1735466130068,3.50183,3406.5,3406.4,0.9238]
[1735466130862,3.4637949,3406.6,3406.5,0.29403]
[1735466131062,3.4637949,3406.6,3406.5,1.08420579]
[1735466132469,3.4637949,3406.6,3406.5,1.08416167]
[1735466133072,3.2078,3406.9,3406.5,1.08416167]
[1735466133073,3.2078,3406.9,3406.8,0.294]
[1735466134661,3.9261949,3407.3,3406.6,1.14]
[1735466134662,3.4637949,3407.3,3407.2,0.29397]
[1735466134870,3.4637949,3407.3,3407.2,3.50177]
[1735466136871,0.441,3407.4,3407.3,0.29396]
[1735466144376,0.294,3406.9,3406.7,3.5018]
[1735466144580,0.9026,3406.8,3406.7,3.50181]
[1735466144786,1.349,3406.8,3406.7,3.50181]
[1735466145681,0.9026,3406.8,3406.7,3.50181]
[1735466145881,0.90456443,3406.8,3406.7,3.50181]
[1735466148088,0.90456443,3406.8,3406.7,3.2078]
[1735466148289,1.19856443,3406.8,3406.7,3.2078]
[1735466149386,0.90456443,3406.8,3406.7,3.50181]
[1735466150687,1.19856443,3406.8,3406.7,3.2078]
[1735466150891,1.19856443,3406.8,3406.7,3.50181]
[1735466151691,0.90456443,3406.8,3406.7,3.50181]
[1735466152390,0.00196443,3406.8,3406.7,3.50181]
[1735466152894,0.46706443,3406.8,3406.7,3.50181]
[1735466154987,0.46706443,3406.8,3406.7,3.2078]
[1735466155188,0.76106443,3406.8,3406.7,3.50181]
[1735466155494,0.76106443,3406.8,3406.7,3.2078]
[1735466155983,0.76106443,3406.8,3406.7,3.50181]
[1735466158789,0.46706443,3406.8,3406.7,0.29401]
[1735466161288,0.76106443,3406.8,3406.7,0.29401]
[1735466161492,0.46706443,3406.8,3406.7,0.29401]
[1735466164891,0.46706443,3406.8,3406.6,3.2078]
[1735466165193,0.29401,3406.7,3406.6,3.2078]
[1735466169695,3.93085933,3406.8,3405.8,3.2078]
[1735466170000,0.29408,3405.9,3405.8,3.2078]
[1735466171305,0.2941,3405.6,3405.5,4.58002539]
[1735466172096,0.29414,3405.2,3405.1,3.658]
[1735466172504,0.29414,3405.2,3405.1,3.95215]
[1735466174393,4.37684277,3405.4,3405.1,3.95215]
[1735466174594,0.29413,3405.3,3405.1,3.95215]
[1735466174801,0.29413,3405.3,3405.1,0.74435]
[1735466175092,0.29413,3405.3,3405.1,0.4502]
[1735466175298,0.29413,3405.3,3405.2,0.29414]
[1735466175904,3.2078,3405.4,3405.1,0.4502]
[1735466176100,3.2078,3405.4,3405.3,0.29413]
[1735466178103,3.2078,3405.4,3405.1,0.4502]
[1735466178298,3.6339,3405.4,3405.2,0.29414]
[1735466178503,3.92803,3405.4,3405.2,0.29414]
[1735466178806,3.6339,3405.4,3405.2,0.29414]
[1735466179107,0.29413,3405.3,3405.1,0.74434]
[1735466180207,3.92803,3405.4,3405.2,0.29413]
[1735466182202,0.29413,3405.3,3405.2,0.29413]
[1735466182599,3.92803,3405.4,3405.2,0.29413]
[1735466183204,0.72023,3405.4,3405.2,0.29413]
[1735466184206,0.29413,3405.3,3405.2,0.29413]
[1735466185816,0.29413,3405.3,3405.1,0.4502]
[1735466185817,0.29414,3405.2,3405.1,0.4502]
[1735466186913,0.29414,3405.2,3405.1,0.74435]
[1735466187316,0.29414,3405.2,3405.1,0.4502]
[1735466187911,0.29414,3405.2,3405.1,0.74435]
[1735466191620,0.29414,3405.2,3405.1,0.4502]
[1735466191819,0.29414,3405.2,3405.1,0.74435]
[1735466192716,0.29414,3405.2,3405.1,0.4502]
[1735466196814,3.2078,3405.3,3405.0,0.29415]
[1735466197021,0.29417,3404.8,3404.7,0.73617]
[1735466197713,0.29417,3404.9,3404.8,0.29417]
[1735466198718,3.2078,3405.3,3404.7,0.442]
[1735466198918,3.2078,3405.3,3404.9,0.29416]
[1735466199117,0.29416,3405.0,3404.9,0.29416]
[1735466199925,3.2078,3405.3,3404.7,0.442]
[1735466200126,0.29416,3405.0,3404.8,0.36784653]
[1735466200424,0.29416,3405.0,3404.9,0.66200521]
[1735466201520,3.50193,3405.3,3405.2,0.29414]
[1735466202414,3.2078,3405.3,3405.2,0.29414]
[1735466203724,3.50193,3405.3,3405.2,0.29414]
[1735466203923,3.2078,3405.3,3405.2,0.29414]
[1735466204327,3.50193,3405.3,3405.2,0.29414]
[1735466206628,3.2078,3405.3,3405.2,0.29414]
[1735466207229,3.2078,3405.3,3405.2,0.66194665]
[1735466208230,3.2078,3405.3,3405.2,0.66193997]
[1735466211229,3.50193,3405.3,3405.2,0.29414]
[1735466211438,3.50193,3405.3,3405.2,0.66194196]
[1735466212329,3.50193,3405.3,3405.2,0.29414]
[1735466212933,0.29413,3405.3,3405.2,0.29414]
[1735466215135,0.29413,3405.4,3405.3,0.29412]
[1735466215333,0.29413,3405.4,3405.3,0.74102]
[1735466215741,3.75427277,3405.4,3405.3,0.74102]
[1735466216735,3.75427277,3405.4,3405.3,0.29412]
[1735466218029,3.46014277,3405.4,3405.2,4.58002539]
[1735466218335,0.29413,3405.3,3405.2,4.87415539]
[1735466218533,0.29413,3405.3,3405.2,5.24195716]
[1735466219129,0.29413,3405.3,3405.2,4.87415539]
[1735466219324,1.19613,3405.3,3405.2,4.87416539]
[1735466220834,4.65627277,3405.3,3405.2,0.29414]
[1735466221232,4.36214277,3405.3,3405.2,0.29414]
[1735466221433,4.65627277,3405.3,3405.2,0.29414]
[1735466222031,1.19613,3405.3,3405.2,4.87416539]
[1735466223432,0.902,3405.3,3405.2,4.87416539]
[1735466224440,0.902,3405.3,3405.2,0.29414]
[1735466225034,3.75427277,3405.4,3405.3,0.29413]
[1735466233641,3.46014277,3405.4,3405.3,0.29413]
[1735466235248,3.75426277,3405.4,3405.3,0.29413]
[1735466235951,3.46014277,3405.4,3405.3,0.29413]
[1735466236343,3.46014277,3405.4,3405.3,0.66193635]
[1735466237252,3.75426277,3405.4,3405.3,0.66193635]
[1735466237640,3.46014277,3405.4,3405.3,0.66193635]
[1735466238044,3.46014277,3405.4,3405.3,0.29413]
[1735466239151,3.75426277,3405.4,3405.3,0.29413]
[1735466242349,0.29412,3405.4,3405.3,0.29413]
[1735466244458,5.35799997,3405.5,3405.4,0.29412]
[1735466245761,0.73002,3405.5,3405.4,0.29412]
[1735466246662,0.4359,3405.5,3405.4,0.661903]
[1735466247557,0.4359,3405.5,3405.4,0.66189755]
[1735466248866,0.4359,3405.5,3405.4,1.11719755]
[1735466250864,0.4359,3405.5,3405.4,5.69722294]
[1735466253672,0.4359,3405.5,3405.4,5.69722337]
[1735466254358,3.90897689,3405.5,3405.4,6.66671836]
[1735466254760,3.47307689,3405.5,3405.4,6.66671836]
[1735466256163,4.6302644,3405.7,3405.4,6.37259836]
[1735466256164,3.47307689,3405.7,3405.4,6.37259836]
[1735466256366,3.47307689,3405.7,3405.6,0.29411]
[1735466256564,3.47307689,3405.7,3405.6,0.66188798]
[1735466257565,3.47307689,3405.8,3405.7,0.2941]
[1735466259072,6.68087689,3405.9,3405.7,4.59485931]
[1735466259264,6.68087689,3405.9,3405.8,0.29409]
[1735466259464,6.68087689,3405.9,3405.8,0.72889]
[1735466259667,6.68087689,3405.9,3405.8,1.17019]
[1735466259862,6.68087689,3405.9,3405.8,1.53792179]
[1735466260269,6.68087689,3405.9,3405.8,1.53791011]
[1735466260474,3.2078,3405.9,3405.8,6.13276942]
[1735466261376,3.2078,3405.9,3405.8,5.76504931]
[1735466264075,0.9019,3406.0,3405.9,0.29408]
[1735466264465,1.19597,3406.0,3405.9,0.29408]
[1735466264670,0.9019,3406.0,3405.9,0.29408]
[1735466277779,0.9019,3406.0,3405.7,3.2078]
[1735466277980,0.29409,3405.8,3405.7,3.2078]
[1735466278379,0.2941,3405.7,3405.6,4.59485931]
[1735466278586,0.7209,3405.7,3405.6,4.59485931]
[1735466279285,0.7209,3405.7,3405.3,3.2078]
[1735466279286,0.29411,3405.6,3405.5,0.29411]
[1735466279485,0.72941,3405.6,3405.5,0.29411]
[1735466281089,0.4353,3405.6,3405.5,0.29411]
[1735466281785,0.4268,3405.7,3405.6,0.29411]